[Event "Titled Tuesday Blitz July 25 Early 2023"]
[White "Morefield, Jason"]
[Black "Eynullayev, Altay"]
[WhiteFideId "30920825"]
[BlackFideId "13413562"]
[WhiteElo "2753"]
[BlackElo "2572"]
[Result "1-0"]
[Round "11"]
[TimeControl "180+2"]
[Date "2023.07.25"]
[WhiteClock "0:00:06"]
[BlackClock "0:00:02"]
[Board "34"]

1. d4 {[%clk 0:03:00]}  Nf6 {[%clk 0:02:52]} 2. c4 {[%clk 0:03:00]}  e6 {[%clk 0:02:52]} 3. Nf3 {[%clk 0:03:00]}  d5 {[%clk 0:02:51]} 4. Nc3 {[%clk 0:03:00]}  Nbd7 {[%clk 0:02:52]} 5. Bf4 {[%clk 0:02:59]}  Bb4 {[%clk 0:02:49]} 6. e3 {[%clk 0:02:53]}  Bxc3+ {[%clk 0:02:48]} 7. bxc3 {[%clk 0:02:52]}  c5 {[%clk 0:02:48]} 8. cxd5 {[%clk 0:02:47]}  Nxd5 {[%clk 0:02:47]} 9. Bd3 {[%clk 0:02:20]}  Nxf4 {[%clk 0:02:31]} 10. exf4 {[%clk 0:02:20]}  Nf6 {[%clk 0:02:29]} 11. O-O {[%clk 0:02:16]}  O-O {[%clk 0:02:29]} 12. Ne5 {[%clk 0:02:16]}  Qc7 {[%clk 0:02:25]} 13. Rb1 {[%clk 0:02:09]}  b6 {[%clk 0:02:21]} 14. a4 {[%clk 0:02:03]}  Bb7 {[%clk 0:02:20]} 15. a5 {[%clk 0:01:58]}  bxa5 {[%clk 0:02:11]} 16. Qa4 {[%clk 0:01:56]}  Nd5 {[%clk 0:01:48]} 17. Qb5 {[%clk 0:01:34]}  Rfb8 {[%clk 0:01:09]} 18. Qxc5 {[%clk 0:01:24]}  Qd8 {[%clk 0:01:00]} 19. Be4 {[%clk 0:00:54]}  Rc8 {[%clk 0:01:00]} 20. Qb5 {[%clk 0:00:44]}  Rab8 {[%clk 0:00:59]} 21. Qd3 {[%clk 0:00:30]}  Rxc3 {[%clk 0:00:43]} 22. Bxh7+ {[%clk 0:00:28]}  Kf8 {[%clk 0:00:43]} 23. Qd2 {[%clk 0:00:27]}  Rc7 {[%clk 0:00:29]} 24. Be4 {[%clk 0:00:15]}  Nb4 {[%clk 0:00:24]} 25. Bxb7 {[%clk 0:00:14]}  Rbxb7 {[%clk 0:00:24]} 26. Rfd1 {[%clk 0:00:09]}  Qd5 {[%clk 0:00:20]} 27. g3 {[%clk 0:00:04]}  Rc2 {[%clk 0:00:18]} 28. Qe3 {[%clk 0:00:04]}  Rbc7 {[%clk 0:00:19]} 29. Re1 {[%clk 0:00:02]}  R7c3 {[%clk 0:00:18]} 30. Qe4 {[%clk 0:00:02]}  Qxe4 {[%clk 0:00:18]} 31. Rxe4 {[%clk 0:00:03]}  Rc1+ {[%clk 0:00:17]} 32. Rxc1 {[%clk 0:00:03]}  Rxc1+ {[%clk 0:00:18]} 33. Kg2 {[%clk 0:00:04]}  Rb1 {[%clk 0:00:08]} 34. Nd7+ {[%clk 0:00:04]}  Ke7 {[%clk 0:00:07]} 35. Nc5 {[%clk 0:00:05]}  Rb2 {[%clk 0:00:06]} 36. f5 {[%clk 0:00:05]}  Kd6 {[%clk 0:00:06]} 37. fxe6 {[%clk 0:00:05]}  fxe6 {[%clk 0:00:06]} 38. Rxe6+ {[%clk 0:00:05]}  Kd5 {[%clk 0:00:07]} 39. Re7 {[%clk 0:00:03]}  Kxd4 {[%clk 0:00:06]} 40. Ne6+ {[%clk 0:00:04]}  Kc3 {[%clk 0:00:05]} 41. Rxa7 {[%clk 0:00:04]}  Ra2 {[%clk 0:00:05]} 42. Nf4 {[%clk 0:00:04]}  a4 {[%clk 0:00:05]} 43. h4 {[%clk 0:00:04]}  a3 {[%clk 0:00:05]} 44. Rxg7 {[%clk 0:00:04]}  Rb2 {[%clk 0:00:04]} 45. Ra7 {[%clk 0:00:04]}  a2 {[%clk 0:00:05]} 46. h5 {[%clk 0:00:05]}  Nc2 {[%clk 0:00:05]} 47. h6 {[%clk 0:00:04]}  a1=Q {[%clk 0:00:05]} 48. Rxa1 {[%clk 0:00:04]}  Nxa1 {[%clk 0:00:06]} 49. h7 {[%clk 0:00:05]}  Rb8 {[%clk 0:00:06]} 50. Ng6 {[%clk 0:00:06]}  Nc2 {[%clk 0:00:06]} 51. h8=Q+ {[%clk 0:00:06]}  Rxh8 {[%clk 0:00:05]} 52. Nxh8 {[%clk 0:00:07]}  Nd4 {[%clk 0:00:06]} 53. Ng6 {[%clk 0:00:07]}  Kc4 {[%clk 0:00:05]} 54. Nf4 {[%clk 0:00:08]}  Nf5 {[%clk 0:00:05]} 55. Kf3 {[%clk 0:00:08]}  Kd4 {[%clk 0:00:04]} 56. Kg4 {[%clk 0:00:08]}  Ke5 {[%clk 0:00:04]} 57. Kg5 {[%clk 0:00:08]}  Nd4 {[%clk 0:00:04]} 58. Nh5 {[%clk 0:00:07]}  Nf3+ {[%clk 0:00:04]} 59. Kg4 {[%clk 0:00:07]}  Nd2 {[%clk 0:00:04]} 60. f4+ {[%clk 0:00:07]}  Ke6 {[%clk 0:00:05]} 61. Kg5 {[%clk 0:00:06]}  Ne4+ {[%clk 0:00:04]} 62. Kg6 {[%clk 0:00:07]}  Ke7 {[%clk 0:00:03]} 63. g4 {[%clk 0:00:07]}  Nf2 {[%clk 0:00:02]} 64. g5 {[%clk 0:00:07]}  Nh3 {[%clk 0:00:02]} 65. f5 {[%clk 0:00:07]}  Nf2 {[%clk 0:00:02]} 66. f6+ {[%clk 0:00:07]}  Kf8 {[%clk 0:00:03]} 67. Nf4 {[%clk 0:00:07]}  Ng4 {[%clk 0:00:03]} 68. Ne6+ {[%clk 0:00:07]}  Ke8 {[%clk 0:00:03]} 69. f7+ {[%clk 0:00:08]}  Kd7 {[%clk 0:00:03]} 70. f8=Q {[%clk 0:00:08]}  Ne5+ {[%clk 0:00:03]} 71. Kf5 {[%clk 0:00:08]}  Nc6 {[%clk 0:00:02]} 72. Qc5 {[%clk 0:00:08]}  Ne7+ {[%clk 0:00:02]} 73. Kf6 {[%clk 0:00:07]}  Nc6 {[%clk 0:00:01]} 74. Qd5+ {[%clk 0:00:06]}  Ke8 {[%clk 0:00:02]} 75. Qxc6# {[%clk 0:00:06]} 1-0


[Site "https://www.chess.com"]

[Event "Titled Tuesday Blitz July 25 Early 2023"]
[White "Xu, Yi"]
[Black "Richter, Nils"]
[WhiteFideId "8605564"]
[BlackFideId "12990809"]
[WhiteElo "2745"]
[BlackElo "2606"]
[Result "1-0"]
[Round "11"]
[TimeControl "180+2"]
[Date "2023.07.25"]
[WhiteClock "0:00:03"]
[BlackClock "0:00:03"]
[Board "35"]

1. h3 {[%clk 0:02:59]}  d5 {[%clk 0:02:49]} 2. a3 {[%clk 0:02:59]}  e5 {[%clk 0:02:47]} 3. b4 {[%clk 0:02:59]}  Nf6 {[%clk 0:02:45]} 4. Bb2 {[%clk 0:03:00]}  Bd6 {[%clk 0:02:45]} 5. g4 {[%clk 0:02:59]}  O-O {[%clk 0:02:45]} 6. Bg2 {[%clk 0:02:59]}  c6 {[%clk 0:02:41]} 7. d3 {[%clk 0:02:59]}  a5 {[%clk 0:02:40]} 8. c3 {[%clk 0:02:56]}  axb4 {[%clk 0:02:39]} 9. axb4 {[%clk 0:02:56]}  Rxa1 {[%clk 0:02:40]} 10. Bxa1 {[%clk 0:02:56]}  Re8 {[%clk 0:02:41]} 11. e4 {[%clk 0:02:49]}  h6 {[%clk 0:02:12]} 12. Ne2 {[%clk 0:02:49]}  Nbd7 {[%clk 0:02:11]} 13. Ng3 {[%clk 0:02:49]}  Nf8 {[%clk 0:02:11]} 14. Bb2 {[%clk 0:02:45]}  Ng6 {[%clk 0:02:11]} 15. Bc1 {[%clk 0:02:42]}  Nh4 {[%clk 0:02:09]} 16. O-O {[%clk 0:02:40]}  Nxg2 {[%clk 0:02:06]} 17. Kxg2 {[%clk 0:02:40]}  b6 {[%clk 0:02:05]} 18. Be3 {[%clk 0:02:36]}  Bb7 {[%clk 0:02:00]} 19. Qc2 {[%clk 0:02:31]}  c5 {[%clk 0:02:00]} 20. bxc5 {[%clk 0:02:29]}  bxc5 {[%clk 0:02:01]} 21. c4 {[%clk 0:02:27]}  d4 {[%clk 0:01:53]} 22. Bc1 {[%clk 0:02:27]}  Nh7 {[%clk 0:01:39]} 23. Nd2 {[%clk 0:02:24]}  Ng5 {[%clk 0:01:38]} 24. Nf3 {[%clk 0:02:19]}  Ne6 {[%clk 0:01:34]} 25. Nf5 {[%clk 0:02:18]}  Bc7 {[%clk 0:01:33]} 26. h4 {[%clk 0:02:05]}  Bc8 {[%clk 0:01:21]} 27. g5 {[%clk 0:01:50]}  hxg5 {[%clk 0:01:15]} 28. hxg5 {[%clk 0:01:50]}  g6 {[%clk 0:01:15]} 29. Nh6+ {[%clk 0:01:48]}  Kg7 {[%clk 0:01:15]} 30. Rh1 {[%clk 0:01:34]}  Rh8 {[%clk 0:01:11]} 31. Qa4 {[%clk 0:01:19]}  Bd6 {[%clk 0:01:04]} 32. Qc6 {[%clk 0:01:12]}  Bc7 {[%clk 0:00:41]} 33. Ng4 {[%clk 0:00:49]}  Rxh1 {[%clk 0:00:40]} 34. Kxh1 {[%clk 0:00:49]}  Bd7 {[%clk 0:00:24]} 35. Qb7 {[%clk 0:00:49]}  Qh8+ {[%clk 0:00:18]} 36. Kg2 {[%clk 0:00:49]}  Nf4+ {[%clk 0:00:16]} 37. Bxf4 {[%clk 0:00:45]}  Bxg4 {[%clk 0:00:17]} 38. Bxe5+ {[%clk 0:00:44]}  Bxe5 {[%clk 0:00:14]} 39. Nxe5 {[%clk 0:00:44]}  Be6 {[%clk 0:00:13]} 40. Qe7 {[%clk 0:00:42]}  Qh3+ {[%clk 0:00:12]} 41. Kg1 {[%clk 0:00:42]}  Qh5 {[%clk 0:00:11]} 42. Qf6+ {[%clk 0:00:34]}  Kg8 {[%clk 0:00:11]} 43. Qf4 {[%clk 0:00:33]}  Qd1+ {[%clk 0:00:11]} 44. Kg2 {[%clk 0:00:32]}  Qh5 {[%clk 0:00:12]} 45. Qg3 {[%clk 0:00:24]}  Kg7 {[%clk 0:00:12]} 46. Qf4 {[%clk 0:00:12]}  Kg8 {[%clk 0:00:11]} 47. f3 {[%clk 0:00:08]}  Qh8 {[%clk 0:00:09]} 48. Nc6 {[%clk 0:00:07]}  Qh5 {[%clk 0:00:05]} 49. Ne7+ {[%clk 0:00:05]}  Kf8 {[%clk 0:00:05]} 50. Nd5 {[%clk 0:00:05]}  Qh8 {[%clk 0:00:03]} 51. Qb8+ {[%clk 0:00:05]}  Kg7 {[%clk 0:00:03]} 52. Qxh8+ {[%clk 0:00:05]}  Kxh8 {[%clk 0:00:04]} 53. Nf4 {[%clk 0:00:05]}  Bd7 {[%clk 0:00:03]} 54. Ne2 {[%clk 0:00:04]}  Kg7 {[%clk 0:00:03]} 55. Nc1 {[%clk 0:00:03]}  Ba4 {[%clk 0:00:04]} 56. f4 {[%clk 0:00:04]}  Kf8 {[%clk 0:00:04]} 57. e5 {[%clk 0:00:04]}  Ke7 {[%clk 0:00:05]} 58. Kf3 {[%clk 0:00:04]}  Ke6 {[%clk 0:00:05]} 59. Kg4 {[%clk 0:00:04]}  Bd1+ {[%clk 0:00:04]} 60. Kh4 {[%clk 0:00:05]}  Kf5 {[%clk 0:00:05]} 61. Kg3 {[%clk 0:00:05]}  Bc2 {[%clk 0:00:04]} 62. Kf3 {[%clk 0:00:04]}  Bd1+ {[%clk 0:00:05]} 63. Kg3 {[%clk 0:00:05]}  Ba4 {[%clk 0:00:05]} 64. Ne2 {[%clk 0:00:03]}  Bc2 {[%clk 0:00:04]} 65. Nc1 {[%clk 0:00:02]}  Bd1 {[%clk 0:00:05]} 66. Na2 {[%clk 0:00:02]}  Be2 {[%clk 0:00:04]} 67. Nc1 {[%clk 0:00:03]}  Bh5 {[%clk 0:00:04]} 68. Nb3 {[%clk 0:00:02]}  Be2 {[%clk 0:00:03]} 69. Nxc5 {[%clk 0:00:03]}  Bf1 {[%clk 0:00:03]} 70. Kf3 {[%clk 0:00:02]}  Bh3 {[%clk 0:00:02]} 71. Nb3 {[%clk 0:00:02]}  Bg4+ {[%clk 0:00:03]} 72. Kg3 {[%clk 0:00:02]}  Bd1 {[%clk 0:00:03]} 73. Nxd4# {[%clk 0:00:03]} 1-0


[Site "https://www.chess.com"]

[Event "Titled Tuesday Blitz July 25 Early 2023"]
[White "Kuznetsov, Felix"]
[Black "Marn, Jan"]
[WhiteFideId "34147990"]
[BlackFideId "14619245"]
[WhiteElo "2723"]
[BlackElo "2467"]
[Result "0-1"]
[Round "11"]
[TimeControl "180+2"]
[Date "2023.07.25"]
[WhiteClock "0:00:02"]
[BlackClock "0:00:02"]
[Board "37"]

1. e4 {[%clk 0:02:55]}  e5 {[%clk 0:02:59]} 2. Nf3 {[%clk 0:02:54]}  Nc6 {[%clk 0:03:00]} 3. Bc4 {[%clk 0:02:53]}  Bc5 {[%clk 0:02:52]} 4. c3 {[%clk 0:02:49]}  Nf6 {[%clk 0:02:52]} 5. d3 {[%clk 0:02:49]}  d6 {[%clk 0:02:49]} 6. Nbd2 {[%clk 0:02:49]}  a6 {[%clk 0:02:41]} 7. Bb3 {[%clk 0:02:49]}  Ba7 {[%clk 0:02:41]} 8. h3 {[%clk 0:02:45]}  Ne7 {[%clk 0:02:40]} 9. Nf1 {[%clk 0:02:44]}  Ng6 {[%clk 0:02:40]} 10. Ng3 {[%clk 0:02:44]}  O-O {[%clk 0:02:38]} 11. O-O {[%clk 0:02:45]}  c6 {[%clk 0:02:38]} 12. Be3 {[%clk 0:02:41]}  Be6 {[%clk 0:02:31]} 13. Re1 {[%clk 0:02:35]}  b5 {[%clk 0:02:18]} 14. d4 {[%clk 0:02:32]}  exd4 {[%clk 0:02:01]} 15. Nxd4 {[%clk 0:02:30]}  Bxb3 {[%clk 0:01:58]} 16. Qxb3 {[%clk 0:02:23]}  Qc7 {[%clk 0:01:57]} 17. Rad1 {[%clk 0:02:08]}  d5 {[%clk 0:01:47]} 18. Ndf5 {[%clk 0:01:59]}  dxe4 {[%clk 0:01:32]} 19. Bxa7 {[%clk 0:01:58]}  Qxa7 {[%clk 0:01:31]} 20. Nxe4 {[%clk 0:01:53]}  Nxe4 {[%clk 0:01:30]} 21. Rxe4 {[%clk 0:01:54]}  Rad8 {[%clk 0:01:15]} 22. Rxd8 {[%clk 0:01:45]}  Rxd8 {[%clk 0:01:14]} 23. Qc2 {[%clk 0:01:41]}  Qd7 {[%clk 0:01:05]} 24. Rd4 {[%clk 0:01:36]}  Qe8 {[%clk 0:00:56]} 25. Qd2 {[%clk 0:01:30]}  Rxd4 {[%clk 0:00:56]} 26. Qxd4 {[%clk 0:01:31]}  Qe1+ {[%clk 0:00:56]} 27. Kh2 {[%clk 0:01:30]}  Qe5+ {[%clk 0:00:56]} 28. Qxe5 {[%clk 0:01:28]}  Nxe5 {[%clk 0:00:56]} 29. f4 {[%clk 0:01:23]}  Nd3 {[%clk 0:00:54]} 30. b3 {[%clk 0:01:19]}  Kf8 {[%clk 0:00:54]} 31. Kg3 {[%clk 0:01:15]}  Nc1 {[%clk 0:00:54]} 32. b4 {[%clk 0:00:48]}  Nxa2 {[%clk 0:00:54]} 33. Nd4 {[%clk 0:00:48]}  c5 {[%clk 0:00:36]} 34. bxc5 {[%clk 0:00:44]}  Nxc3 {[%clk 0:00:36]} 35. Kf3 {[%clk 0:00:37]}  Ke8 {[%clk 0:00:23]} 36. Ke3 {[%clk 0:00:36]}  Kd7 {[%clk 0:00:18]} 37. Kd3 {[%clk 0:00:36]}  Nd5 {[%clk 0:00:15]} 38. g3 {[%clk 0:00:36]}  Ne7 {[%clk 0:00:15]} 39. Ke4 {[%clk 0:00:31]}  g6 {[%clk 0:00:15]} 40. g4 {[%clk 0:00:25]}  Nc6 {[%clk 0:00:15]} 41. Nb3 {[%clk 0:00:25]}  a5 {[%clk 0:00:15]} 42. Kd5 {[%clk 0:00:22]}  a4 {[%clk 0:00:14]} 43. Nd2 {[%clk 0:00:19]}  b4 {[%clk 0:00:12]} 44. Kc4 {[%clk 0:00:20]}  a3 {[%clk 0:00:08]} 45. Kb3 {[%clk 0:00:15]}  Ke6 {[%clk 0:00:08]} 46. Ne4 {[%clk 0:00:10]}  Kd5 {[%clk 0:00:07]} 47. Ng5 {[%clk 0:00:10]}  Kxc5 {[%clk 0:00:06]} 48. Nxf7 {[%clk 0:00:10]}  Nd4+ {[%clk 0:00:05]} 49. Ka2 {[%clk 0:00:10]}  Kc4 {[%clk 0:00:04]} 50. Nd6+ {[%clk 0:00:10]}  Kc3 {[%clk 0:00:04]} 51. Ne4+ {[%clk 0:00:10]}  Kd3 {[%clk 0:00:04]} 52. Nc5+ {[%clk 0:00:10]}  Kc4 {[%clk 0:00:04]} 53. Ne4 {[%clk 0:00:11]}  Nc2 {[%clk 0:00:05]} 54. Nd2+ {[%clk 0:00:07]}  Kd3 {[%clk 0:00:03]} 55. Nb3 {[%clk 0:00:06]}  Ke4 {[%clk 0:00:03]} 56. f5 {[%clk 0:00:04]}  gxf5 {[%clk 0:00:03]} 57. gxf5 {[%clk 0:00:04]}  Kxf5 {[%clk 0:00:04]} 58. Nc5 {[%clk 0:00:04]}  Nd4 {[%clk 0:00:03]} 59. Nd3 {[%clk 0:00:03]}  Nc6 {[%clk 0:00:04]} 60. Kb3 {[%clk 0:00:02]}  Kg5 {[%clk 0:00:04]} 61. Nf2 {[%clk 0:00:02]}  Kh4 {[%clk 0:00:04]} 62. Ka2 {[%clk 0:00:02]}  Kg3 {[%clk 0:00:05]} 63. Ne4+ {[%clk 0:00:02]}  Kxh3 {[%clk 0:00:05]} 64. Ng5+ {[%clk 0:00:03]}  Kg4 {[%clk 0:00:05]} 65. Nxh7 {[%clk 0:00:04]}  Kf5 {[%clk 0:00:06]} 66. Nf8 {[%clk 0:00:03]}  Ke5 {[%clk 0:00:05]} 67. Ng6+ {[%clk 0:00:03]}  Kd4 {[%clk 0:00:05]} 68. Kb3 {[%clk 0:00:04]}  Kc5 {[%clk 0:00:05]} 69. Nf4 {[%clk 0:00:04]}  Nd4+ {[%clk 0:00:05]} 70. Ka2 {[%clk 0:00:05]}  Kc4 {[%clk 0:00:06]} 71. Ng2 {[%clk 0:00:02]}  Kd3 {[%clk 0:00:03]} 72. Nf4+ {[%clk 0:00:02]}  Kc2 {[%clk 0:00:03]} 73. Nd5 {[%clk 0:00:01]}  b3+ {[%clk 0:00:02]} 74. Kxa3 {[%clk 0:00:02]}  b2 {[%clk 0:00:03]} 75. Ne3+ {[%clk 0:00:02]}  Kc1 {[%clk 0:00:03]} 76. Nd5 {[%clk 0:00:01]}  b1=Q {[%clk 0:00:03]} 77. Nc3 {[%clk 0:00:02]}  Qb3# {[%clk 0:00:02]} 0-1


[Site "https://www.chess.com"]

[Event "Titled Tuesday Blitz July 25 Early 2023"]
[White "Gharibyan, Mamikon"]
[Black "Khusenkhojaev, Muhammad"]
[WhiteFideId "13308300"]
[BlackFideId "14700247"]
[WhiteElo "2780"]
[BlackElo "2609"]
[Result "1-0"]
[Round "11"]
[TimeControl "180+2"]
[Date "2023.07.25"]
[WhiteClock "0:01:29"]
[BlackClock "0:00:00"]
[Board "38"]

1. e4 {[%clk 0:02:59]}  c5 {[%clk 0:02:59]} 2. Nf3 {[%clk 0:02:57]}  d6 {[%clk 0:02:59]} 3. d4 {[%clk 0:02:52]}  cxd4 {[%clk 0:03:00]} 4. Nxd4 {[%clk 0:02:53]}  Nf6 {[%clk 0:02:59]} 5. Nc3 {[%clk 0:02:54]}  a6 {[%clk 0:02:59]} 6. h3 {[%clk 0:02:54]}  g6 {[%clk 0:02:58]} 7. g4 {[%clk 0:02:53]}  Bg7 {[%clk 0:02:58]} 8. Be3 {[%clk 0:02:53]}  Nc6 {[%clk 0:02:57]} 9. Be2 {[%clk 0:02:49]}  O-O {[%clk 0:02:54]} 10. g5 {[%clk 0:02:49]}  Nd7 {[%clk 0:02:54]} 11. h4 {[%clk 0:02:49]}  Qa5 {[%clk 0:02:37]} 12. Qd2 {[%clk 0:02:40]}  Nc5 {[%clk 0:02:31]} 13. O-O-O {[%clk 0:02:32]}  Bd7 {[%clk 0:02:07]} 14. Kb1 {[%clk 0:02:28]}  Rfe8 {[%clk 0:02:00]} 15. f4 {[%clk 0:02:19]}  b5 {[%clk 0:01:54]} 16. Bf3 {[%clk 0:02:18]}  Rac8 {[%clk 0:01:52]} 17. h5 {[%clk 0:02:16]}  b4 {[%clk 0:01:46]} 18. Nd5 {[%clk 0:02:12]}  Nxd4 {[%clk 0:01:07]} 19. Bxd4 {[%clk 0:02:11]}  Bxd4 {[%clk 0:01:06]} 20. Qxd4 {[%clk 0:02:12]}  Ne6 {[%clk 0:01:03]} 21. Qd2 {[%clk 0:02:05]}  Ba4 {[%clk 0:00:36]} 22. b3 {[%clk 0:02:05]}  Bc6 {[%clk 0:00:36]} 23. hxg6 {[%clk 0:02:01]}  fxg6 {[%clk 0:00:28]} 24. f5 {[%clk 0:01:43]}  Bxd5 {[%clk 0:00:27]} 25. exd5 {[%clk 0:01:41]}  Nf8 {[%clk 0:00:24]} 26. fxg6 {[%clk 0:01:39]}  Nxg6 {[%clk 0:00:19]} 27. Be4 {[%clk 0:01:39]}  Rc3 {[%clk 0:00:03]} 28. Qd4 {[%clk 0:01:32]}  Qc5 {[%clk 0:00:00]} 29. Bxg6 {[%clk 0:01:29]} 1-0


[Site "https://www.chess.com"]

[Event "Titled Tuesday Blitz July 25 Early 2023"]
[White "Ilkhomi, Jaloliddin"]
[Black "Tristan, Leonardo"]
[WhiteFideId "14700948"]
[BlackFideId "113816"]
[WhiteElo "2585"]
[BlackElo "2756"]
[Result "1-0"]
[Round "11"]
[TimeControl "180+2"]
[Date "2023.07.25"]
[WhiteClock "0:00:08"]
[BlackClock "0:00:01"]
[Board "40"]

1. d4 {[%clk 0:02:52]}  d5 {[%clk 0:03:00]} 2. Bf4 {[%clk 0:02:51]}  Nf6 {[%clk 0:03:00]} 3. e3 {[%clk 0:02:52]}  c5 {[%clk 0:03:00]} 4. c3 {[%clk 0:02:51]}  Nc6 {[%clk 0:03:00]} 5. Nd2 {[%clk 0:02:52]}  Bf5 {[%clk 0:03:01]} 6. Ngf3 {[%clk 0:02:52]}  e6 {[%clk 0:02:59]} 7. Qb3 {[%clk 0:02:52]}  Qd7 {[%clk 0:02:57]} 8. Ne5 {[%clk 0:02:51]}  Nxe5 {[%clk 0:02:57]} 9. dxe5 {[%clk 0:02:52]}  c4 {[%clk 0:02:58]} 10. Nxc4 {[%clk 0:02:43]}  dxc4 {[%clk 0:02:58]} 11. Bxc4 {[%clk 0:02:44]}  O-O-O {[%clk 0:02:59]} 12. exf6 {[%clk 0:02:26]}  Qd2+ {[%clk 0:02:58]} 13. Kf1 {[%clk 0:02:27]}  gxf6 {[%clk 0:02:58]} 14. Be2 {[%clk 0:02:13]}  e5 {[%clk 0:02:29]} 15. Rd1 {[%clk 0:01:56]}  Qxd1+ {[%clk 0:01:00]} 16. Bxd1 {[%clk 0:01:52]}  Be6 {[%clk 0:00:45]} 17. Qc2 {[%clk 0:01:46]}  exf4 {[%clk 0:00:46]} 18. Bf3 {[%clk 0:01:13]}  Bc5 {[%clk 0:00:45]} 19. exf4 {[%clk 0:00:59]}  Rhe8 {[%clk 0:00:38]} 20. b3 {[%clk 0:00:44]}  Rd6 {[%clk 0:00:19]} 21. f5 {[%clk 0:00:26]}  Bd7 {[%clk 0:00:14]} 22. g3 {[%clk 0:00:25]}  Re5 {[%clk 0:00:14]} 23. Kg2 {[%clk 0:00:22]}  Bxf5 {[%clk 0:00:14]} 24. Qc1 {[%clk 0:00:21]}  h5 {[%clk 0:00:10]} 25. Re1 {[%clk 0:00:21]}  h4 {[%clk 0:00:11]} 26. Rxe5 {[%clk 0:00:20]}  h3+ {[%clk 0:00:11]} 27. Kf1 {[%clk 0:00:18]}  fxe5 {[%clk 0:00:12]} 28. Qg5 {[%clk 0:00:18]}  Bd3+ {[%clk 0:00:13]} 29. Ke1 {[%clk 0:00:18]}  f6 {[%clk 0:00:13]} 30. Qg8+ {[%clk 0:00:17]}  Rd8 {[%clk 0:00:14]} 31. Bg4+ {[%clk 0:00:17]}  Kc7 {[%clk 0:00:13]} 32. Qf7+ {[%clk 0:00:17]}  Kb8 {[%clk 0:00:13]} 33. Qxf6 {[%clk 0:00:13]}  Bb6 {[%clk 0:00:14]} 34. Qxe5+ {[%clk 0:00:13]}  Bc7 {[%clk 0:00:13]} 35. Qf6 {[%clk 0:00:12]}  Re8+ {[%clk 0:00:06]} 36. Kd2 {[%clk 0:00:12]}  Bb5 {[%clk 0:00:07]} 37. Bf3 {[%clk 0:00:08]}  Rd8+ {[%clk 0:00:05]} 38. Kc1 {[%clk 0:00:09]}  Re8 {[%clk 0:00:03]} 39. c4 {[%clk 0:00:07]}  Ba6 {[%clk 0:00:03]} 40. Qf7 {[%clk 0:00:07]}  Re1+ {[%clk 0:00:03]} 41. Kd2 {[%clk 0:00:07]}  Rf1 {[%clk 0:00:01]} 42. Qe8+ {[%clk 0:00:07]}  Bd8 {[%clk 0:00:01]} 43. Qxd8# {[%clk 0:00:08]} 1-0


[Site "https://www.chess.com"]

[Event "Titled Tuesday Blitz July 25 Early 2023"]
[White "Vakhlamov, Igor L."]
[Black "vishwa_vijeta"]
[WhiteFideId "24126748"]
[WhiteElo "2755"]
[BlackElo "2581"]
[Result "0-1"]
[Round "11"]
[TimeControl "180+2"]
[Date "2023.07.25"]
[WhiteClock "0:02:27"]
[BlackClock "0:01:57"]
[Board "41"]

1. e4 {[%clk 0:02:49]}  c5 {[%clk 0:02:58]} 2. Nf3 {[%clk 0:02:50]}  d6 {[%clk 0:02:57]} 3. Nc3 {[%clk 0:02:50]}  Nf6 {[%clk 0:02:57]} 4. d4 {[%clk 0:02:51]}  cxd4 {[%clk 0:02:57]} 5. Qxd4 {[%clk 0:02:52]}  Nc6 {[%clk 0:02:56]} 6. Bb5 {[%clk 0:02:52]}  Bd7 {[%clk 0:02:56]} 7. Bxc6 {[%clk 0:02:53]}  Bxc6 {[%clk 0:02:57]} 8. Bg5 {[%clk 0:02:53]}  e6 {[%clk 0:02:57]} 9. O-O-O {[%clk 0:02:53]}  Be7 {[%clk 0:02:57]} 10. Rhe1 {[%clk 0:02:54]}  O-O {[%clk 0:02:56]} 11. e5 {[%clk 0:02:54]}  dxe5 {[%clk 0:02:56]} 12. Nxe5 {[%clk 0:02:55]}  Qc7 {[%clk 0:02:44]} 13. Qc4 {[%clk 0:02:54]}  Rad8 {[%clk 0:02:40]} 14. Nxc6 {[%clk 0:02:53]}  bxc6 {[%clk 0:02:40]} 15. g3 {[%clk 0:02:50]}  Qb6 {[%clk 0:02:20]} 16. Be3 {[%clk 0:02:43]}  Qb7 {[%clk 0:02:16]} 17. Bc5 {[%clk 0:02:39]}  Nd5 {[%clk 0:02:01]} 18. Bxe7 {[%clk 0:02:34]}  Qxe7 {[%clk 0:02:00]} 19. Nxd5 {[%clk 0:02:29]}  cxd5 {[%clk 0:01:59]} 20. Rxd5 {[%clk 0:02:27]}  exd5 {[%clk 0:01:57]} 0-1


[Site "https://www.chess.com"]

[Event "Titled Tuesday Blitz July 25 Early 2023"]
[White "Vovk, Orest"]
[Black "Matinian, Nikita"]
[WhiteFideId "14113490"]
[BlackFideId "24129100"]
[WhiteElo "2575"]
[BlackElo "2743"]
[Result "0-1"]
[Round "11"]
[TimeControl "180+2"]
[Date "2023.07.25"]
[WhiteClock "0:00:03"]
[BlackClock "0:00:05"]
[Board "42"]

1. g4 {[%clk 0:02:56]}  d5 {[%clk 0:02:54]} 2. h3 {[%clk 0:02:56]}  h5 {[%clk 0:02:53]} 3. g5 {[%clk 0:02:55]}  e5 {[%clk 0:02:52]} 4. Bg2 {[%clk 0:02:55]}  Qxg5 {[%clk 0:02:49]} 5. Bxd5 {[%clk 0:02:55]}  Nf6 {[%clk 0:02:48]} 6. Nf3 {[%clk 0:02:54]}  Qf5 {[%clk 0:02:49]} 7. e4 {[%clk 0:02:51]}  Nxe4 {[%clk 0:02:48]} 8. Qe2 {[%clk 0:02:44]}  Nf6 {[%clk 0:02:27]} 9. Nc3 {[%clk 0:02:01]}  Bd6 {[%clk 0:02:07]} 10. d4 {[%clk 0:01:54]}  Nxd5 {[%clk 0:01:49]} 11. Nxd5 {[%clk 0:01:53]}  e4 {[%clk 0:01:48]} 12. Ne5 {[%clk 0:01:39]}  Bxe5 {[%clk 0:01:26]} 13. dxe5 {[%clk 0:01:40]}  Qxe5 {[%clk 0:01:23]} 14. c4 {[%clk 0:01:41]}  Na6 {[%clk 0:01:16]} 15. Bf4 {[%clk 0:01:38]}  Qf5 {[%clk 0:01:01]} 16. Rg1 {[%clk 0:01:24]}  Be6 {[%clk 0:00:55]} 17. Rg5 {[%clk 0:01:20]}  Qxh3 {[%clk 0:00:54]} 18. O-O-O {[%clk 0:01:08]}  O-O-O {[%clk 0:00:53]} 19. Qxe4 {[%clk 0:01:03]}  Rhe8 {[%clk 0:00:42]} 20. Qd4 {[%clk 0:00:55]}  Bxd5 {[%clk 0:00:39]} 21. cxd5 {[%clk 0:00:48]}  Qf3 {[%clk 0:00:26]} 22. Be3 {[%clk 0:00:38]}  b6 {[%clk 0:00:18]} 23. Rxg7 {[%clk 0:00:31]}  Nc5 {[%clk 0:00:18]} 24. Qf4 {[%clk 0:00:21]}  Qxf4 {[%clk 0:00:13]} 25. Bxf4 {[%clk 0:00:22]}  Rd7 {[%clk 0:00:08]} 26. Be3 {[%clk 0:00:21]}  Re4 {[%clk 0:00:05]} 27. Bxc5 {[%clk 0:00:16]}  Rc4+ {[%clk 0:00:04]} 28. Kb1 {[%clk 0:00:15]}  Rxc5 {[%clk 0:00:05]} 29. Rg5 {[%clk 0:00:15]}  h4 {[%clk 0:00:05]} 30. Rh5 {[%clk 0:00:15]}  Kb7 {[%clk 0:00:05]} 31. b4 {[%clk 0:00:12]}  Rc4 {[%clk 0:00:05]} 32. a3 {[%clk 0:00:11]}  Rf4 {[%clk 0:00:06]} 33. Rd2 {[%clk 0:00:11]}  Ka6 {[%clk 0:00:05]} 34. Kc2 {[%clk 0:00:10]}  Kb7 {[%clk 0:00:05]} 35. b5 {[%clk 0:00:09]}  a6 {[%clk 0:00:05]} 36. bxa6+ {[%clk 0:00:08]}  Kxa6 {[%clk 0:00:06]} 37. Rh6 {[%clk 0:00:05]}  Kb7 {[%clk 0:00:06]} 38. Kc3 {[%clk 0:00:05]}  Rd6 {[%clk 0:00:06]} 39. Kc2 {[%clk 0:00:03]}  Rxh6 {[%clk 0:00:05]} 0-1


[Site "https://www.chess.com"]